fUSD/lending_fUSD_20250221
["ID","MTS","AMOUNT","RATE_DAILY","PERIOD"]
[354018259,1740181852222,-500.0,0.00011451,2]
[354018260,1740181852231,-500.0,0.00011451,2]
[354018261,1740181852240,-500.0,0.00011451,2]
[354018262,1740181852249,-500.0,0.00011451,2]
[354018263,1740181852259,-500.0,0.00011451,2]
[354018264,1740181852267,-500.0,0.00011451,2]
[354018265,1740181852276,-1102.43,0.00011451,2]
[354018266,1740181852286,-500.0,0.00011451,2]
[354018267,1740181852295,-1838.679061,0.00011451,2]
[354018268,1740181852304,-500.0,0.00011451,2]
[354018269,1740181852313,-500.0,0.00011451,2]
[354018270,1740181852322,-1600.821566,0.00011451,2]
[354018271,1740181852331,-500.0,0.00011451,2]
[354018272,1740181852341,-810.35,0.00011451,2]
[354018273,1740181852350,-500.0,0.00011451,2]
[354018274,1740181852359,-180.759504,0.00011451,2]
[354018275,1740181852368,-593.26,0.00011451,2]
[354018276,1740181852377,-500.0,0.00011451,2]
[354018277,1740181852386,-500.0,0.00011451,2]
[354018278,1740181852395,-500.0,0.00011451,2]
[354018279,1740181852404,-500.0,0.00011451,2]
[354018280,1740181852413,-973.71,0.00011451,2]
[354018281,1740181852422,-630.44,0.00011451,2]
[354018282,1740181852431,-268.98927349,0.00011451,2]
[354018283,1740181852441,-558.81,0.00011451,2]
[354018284,1740181852449,-500.0,0.00011451,2]
[354018285,1740181852459,-1021.16,0.00011451,2]
[354018286,1740181852467,-500.0,0.00011451,2]
[354018287,1740181852476,-1763.61,0.00011451,2]
[354018288,1740181852486,-500.0,0.00011451,2]
[354018289,1740181852495,-500.0,0.00011451,2]
[354018290,1740181852503,-509.21,0.00011451,2]
[354018291,1740181852512,-707.44,0.00011451,2]
[354018292,1740181852521,-500.0,0.00011451,2]
[354018293,1740181852531,-561.17,0.00011451,2]
[354018294,1740181852540,-1121.92,0.00011451,2]
[354018295,1740181852550,-500.0,0.00011451,2]
[354018296,1740181852559,-500.0,0.00011451,2]
[354018297,1740181852569,-522.86,0.00011451,2]
[354018298,1740181852578,-500.0,0.00011451,2]
[354018299,1740181852588,-500.0,0.00011451,2]
[354018300,1740181852597,-500.0,0.00011451,2]
[354018301,1740181852606,-500.0,0.00011451,2]
[354018302,1740181852616,-500.0,0.00011451,2]
[354018303,1740181852628,-759.25,0.00011451,2]
[354018304,1740181852638,-600.88,0.00011451,2]
[354018305,1740181852647,-935.67,0.00011451,2]
[354018306,1740181852656,-500.0,0.00011451,2]
[354018307,1740181852666,-742.59,0.00011451,2]
[354018308,1740181852675,-532.14,0.00011451,2]
[354018309,1740181852684,-500.0,0.00011451,2]
[354018310,1740181852693,-1952.39,0.00011451,2]
[354018311,1740181852703,-500.0,0.00011451,2]
[354018312,1740181852714,-500.0,0.00011451,2]
[354018313,1740181852723,-606.23,0.00011451,2]
[354018314,1740181852732,-594.2,0.00011451,2]
[354018315,1740181852741,-500.0,0.00011451,2]
[354018316,1740181852751,-500.0,0.00011451,2]
[354018317,1740181852760,-921.64,0.00011451,2]
[354018318,1740181852769,-904.92,0.00011451,2]
[354018319,1740181852778,-646.96,0.00011451,2]
[354018320,1740181852787,-542.05,0.00011451,2]
[354018321,1740181852797,-500.0,0.00011452,2]
[354018322,1740181852805,-500.0,0.00011452,2]
[354018323,1740181852814,-500.0,0.00011452,2]
[354018324,1740181852824,-500.0,0.00011452,2]
[354018325,1740181852833,-348.54,0.00011452,2]
[354018326,1740181852843,-650.27,0.00011452,2]
[354018327,1740181852852,-500.0,0.00011452,2]
[354018328,1740181852861,-218.25,0.00011452,2]
[354018329,1740181852870,-463.56,0.00011452,2]
[354018330,1740181852879,-500.0,0.00011452,2]
[354018331,1740181852888,-500.0,0.00011452,2]
[354018332,1740181852897,-500.0,0.00011452,2]
[354018333,1740181852907,-500.0,0.00011452,2]
[354018334,1740181852916,-500.0,0.00011452,2]
[354018335,1740181852925,-532.62,0.00011452,2]
[354018336,1740181852934,-249.68,0.00011452,2]
[354018337,1740181852945,-500.0,0.00011452,2]
[354018338,1740181852954,-310.75,0.00011452,2]
[354018339,1740181852964,-500.0,0.00011452,2]
[354018340,1740181852973,-500.0,0.00011452,2]
[354018341,1740181852982,-500.0,0.00011452,2]
[354018342,1740181852992,-500.0,0.00011452,2]
[354018343,1740181853001,-500.0,0.00011452,2]
[354018344,1740181853011,-500.0,0.00011452,2]
[354018345,1740181853021,-417.75108294,0.00011452,2]
[354018346,1740181853030,-500.0,0.00011452,2]
[354018347,1740181853039,-500.0,0.00011452,2]
[354018348,1740181853049,-500.0,0.00011452,2]
[354018349,1740181853058,-500.0,0.00011452,2]
[354018350,1740181853068,-840.41,0.00011452,2]
[354018351,1740181853078,-1164.89,0.00011452,2]
[354018352,1740181853087,-500.0,0.00011452,2]
[354018353,1740181853096,-500.0,0.00011452,2]
[354018354,1740181853106,-500.0,0.00011452,2]
[354018355,1740181853115,-500.0,0.00011452,2]
[354018356,1740181853124,-500.0,0.00011452,2]
[354018357,1740181853134,-500.0,0.00011452,2]
[354018358,1740181853143,-567.21,0.00011452,2]
[354018359,1740181853153,-632.2,0.00011452,2]
[354018360,1740181853162,-560.27,0.00011452,2]
[354018361,1740181853172,-500.0,0.00011452,2]
[354018362,1740181853181,-500.0,0.00011452,2]
[354018363,1740181853190,-190.58702956,0.00011515,2]
[354018364,1740181853200,-500.0,0.0001153,2]
[354018365,1740181853210,-500.0,0.00011533,2]
[354018366,1740181853220,-500.0,0.00011533,2]
[354018367,1740181853229,-500.0,0.00011533,2]
[354018368,1740181853238,-500.0,0.00011533,2]
[354018369,1740181853248,-500.0,0.00011533,2]
[354018370,1740181853257,-500.0,0.00011533,2]
[354018371,1740181853266,-500.0,0.00011533,2]
[354018372,1740181853276,-500.0,0.00011533,2]
[354018373,1740181853286,-500.0,0.00011533,2]
[354018374,1740181853295,-500.0,0.00011533,2]
[354018375,1740181853305,-500.0,0.00011533,2]
[354018376,1740181853314,-500.0,0.00011533,2]
[354018377,1740181853323,-500.0,0.00011533,2]
[354018378,1740181853332,-578.52038007,0.00011533,2]
[354018379,1740181853341,-500.0,0.00011533,2]
[354018380,1740181853351,-500.0,0.00011533,2]
[354018381,1740181853360,-500.0,0.00011533,2]
[354018382,1740181853369,-500.0,0.00011533,2]
[354018383,1740181853379,-500.0,0.00011533,2]
[354018384,1740181853388,-500.0,0.00011533,2]
[354018385,1740181853398,-500.0,0.00011533,2]
[354018386,1740181853407,-500.0,0.00011533,2]
[354018387,1740181853416,-500.0,0.00011533,2]
[354018388,1740181853425,-500.0,0.00011533,2]
[354018389,1740181853434,-500.0,0.00011533,2]
[354018390,1740181853443,-500.0,0.00011533,2]
[354018391,1740181853452,-527.59,0.00011533,2]
[354018392,1740181853462,-500.0,0.00011533,2]
[354018393,1740181853471,-500.0,0.00011533,2]
[354018394,1740181853480,-500.0,0.00011533,2]
[354018395,1740181853489,-500.0,0.00011533,2]
[354018396,1740181853498,-500.0,0.00011533,2]
[354018397,1740181853508,-500.0,0.00011533,2]
[354018398,1740181853516,-500.0,0.00011533,2]
[354018399,1740181853526,-500.0,0.00011533,2]
[354018400,1740181853535,-500.0,0.00011533,2]
[354018401,1740181853545,-500.0,0.00011533,2]
[354018402,1740181853555,-500.0,0.00011533,2]
[354018403,1740181853565,-500.0,0.00011533,2]
[354018404,1740181853574,-500.0,0.00011533,2]
[354018405,1740181853583,-500.0,0.00011533,2]
[354018406,1740181853593,-500.0,0.00011533,2]
[354018407,1740181853603,-500.0,0.00011533,2]
[354018408,1740181853613,-500.0,0.00011533,2]
[354018409,1740181853625,-500.0,0.00011533,2]
[354018410,1740181853637,-500.0,0.00011533,2]
[354018411,1740181853646,-500.0,0.00011533,2]
[354018412,1740181853656,-500.0,0.00011533,2]
[354018413,1740181853666,-500.0,0.00011533,2]
[354018414,1740181853675,-1102.43,0.00011533,2]
[354018415,1740181853684,-522.25,0.00011533,2]
[354018416,1740181853693,-500.0,0.00011533,2]
[354018417,1740181853705,-500.0,0.00011533,2]
[354018418,1740181853715,-1838.679061,0.00011533,2]
[354018419,1740181853724,-554.25,0.00011533,2]
[354018420,1740181853734,-686.33,0.00011533,2]
[354018421,1740181853743,-186.3,0.00011533,2]
[354018422,1740181853755,-518.97648914,0.00011533,2]
[354018423,1740181853766,-1600.821566,0.00011533,2]
[354018424,1740181853776,-500.0,0.00011533,2]
[354018425,1740181853786,-500.0,0.00011533,2]
[354018426,1740181853796,-500.0,0.00011533,2]
[354018427,1740181853807,-500.0,0.00011533,2]
[354018428,1740181853819,-810.35,0.00011533,2]
[354018429,1740181853828,-500.0,0.00011533,2]
[354018430,1740181853838,-500.0,0.00011533,2]
[354018431,1740181853848,-593.26,0.00011533,2]
[354018432,1740181853859,-500.0,0.00011533,2]
[354018433,1740181853869,-500.0,0.00011533,2]
[354018434,1740181853879,-500.0,0.00011533,2]
[354018435,1740181853888,-500.0,0.00011533,2]
[354018436,1740181853898,-500.0,0.00011533,2]
[354018437,1740181853908,-500.0,0.00011533,2]
[354018438,1740181853919,-500.0,0.00011533,2]
[354018439,1740181853929,-973.71,0.00011533,2]
[354018440,1740181853939,-500.0,0.00011533,2]
[354018441,1740181853949,-1570.17,0.00011533,2]
[354018442,1740181853959,-630.44,0.00011533,2]
[354018443,1740181853968,-558.81,0.00011533,2]
[354018444,1740181853979,-500.0,0.00011533,2]
[354018445,1740181853988,-500.0,0.00011533,2]
[354018446,1740181853998,-1021.16,0.00011533,2]
[354018447,1740181854007,-500.0,0.00011533,2]
[354018448,1740181854018,-965.01,0.00011533,2]
[354018449,1740181854029,-1763.61,0.00011533,2]
[354018450,1740181854039,-500.0,0.00011533,2]
[354018451,1740181854049,-500.0,0.00011533,2]
[354018452,1740181854061,-500.0,0.00011533,2]
[354018453,1740181854071,-624.35,0.00011533,2]
[354018454,1740181854080,-509.21,0.00011533,2]
[354018455,1740181854090,-707.44,0.00011533,2]
[354018456,1740181854100,-500.0,0.00011533,2]
[354018457,1740181854109,-828.03,0.00011533,2]
[354018458,1740181854119,-500.0,0.00011533,2]
[354018459,1740181854129,-561.17,0.00011533,2]
[354018460,1740181854139,-1895.66,0.00011533,2]
[354018461,1740181854149,-1121.92,0.00011533,2]
[354018462,1740181854159,-500.0,0.00011533,2]
[354018463,1740181854168,-500.0,0.00011533,2]
[354018464,1740181854178,-342.78993463,0.00011533,2]
[354018465,1740181854187,-522.86,0.00011533,2]
[354018466,1740181854197,-500.0,0.00011533,2]
[354018467,1740181854207,-500.0,0.00011533,2]
[354018468,1740181854217,-614.55,0.00011533,2]
[354018469,1740181854227,-500.0,0.00011533,2]
[354018470,1740181854237,-500.0,0.00011533,2]
[354018471,1740181854246,-500.0,0.00011533,2]
[354018472,1740181854256,-500.0,0.00011533,2]
[354018473,1740181854265,-500.0,0.00011533,2]
[354018474,1740181854275,-500.0,0.00011533,2]
[354018475,1740181854286,-639.37640721,0.00011533,2]
[354018476,1740181854296,-500.0,0.00011533,2]
[354018477,1740181854306,-759.25,0.00011533,2]
[354018478,1740181854316,-635.66,0.00011533,2]
[354018479,1740181854326,-600.88,0.00011533,2]
[354018480,1740181854336,-500.0,0.00011533,2]
[354018481,1740181854346,-500.0,0.00011533,2]
[354018482,1740181854356,-935.67,0.00011533,2]
[354018483,1740181854369,-500.0,0.00011533,2]
[354018484,1740181854379,-500.0,0.00011533,2]
[354018485,1740181854389,-500.0,0.00011533,2]
[354018486,1740181854399,-742.59,0.00011533,2]
[354018487,1740181854408,-532.14,0.00011533,2]
[354018488,1740181854418,-500.0,0.00011533,2]
[354018489,1740181854428,-677.65,0.00011533,2]
[354018490,1740181854438,-500.0,0.00011533,2]
[354018491,1740181854447,-1193.98,0.00011533,2]
[354018492,1740181854457,-1192.63,0.00011533,2]
[354018493,1740181854468,-1952.39,0.00011533,2]
[354018494,1740181854477,-500.0,0.00011533,2]
[354018495,1740181854487,-500.0,0.00011533,2]
[354018496,1740181854497,-500.0,0.00011533,2]
[354018497,1740181854506,-1000.0,0.00011533,2]
[354018498,1740181854516,-606.23,0.00011533,2]
[354018499,1740181854526,-594.2,0.00011533,2]
[354018500,1740181854535,-553.49,0.00011533,2]
[354018501,1740181854545,-753.83,0.00011533,2]
[354018502,1740181854555,-500.0,0.00011533,2]
[354018503,1740181854565,-500.0,0.00011533,2]
[354018504,1740181854575,-825.27,0.00011533,2]
[354018505,1740181854585,-500.0,0.00011533,2]
[354018506,1740181854595,-921.64,0.00011533,2]
[354018507,1740181854605,-904.92,0.00011533,2]
[354018508,1740181854615,-950.11,0.00011533,2]
[354018509,1740181854628,-500.0,0.00011533,2]
[354018510,1740181854637,-646.96,0.00011533,2]
[354018511,1740181854647,-500.0,0.00011533,2]
[354018512,1740181854657,-542.05,0.00011533,2]
[354018513,1740181854668,-500.0,0.00011534,2]
[354018514,1740181854677,-500.0,0.00011534,2]
[354018515,1740181854687,-500.0,0.00011534,2]
[354018516,1740181854698,-500.0,0.00011534,2]
[354018517,1740181854708,-650.27,0.00011534,2]
[354018518,1740181854718,-500.0,0.00011534,2]
[354018519,1740181854727,-500.0,0.00011534,2]
[354018520,1740181854738,-545.8,0.00011534,2]
[354018521,1740181854748,-500.0,0.00011534,2]
[354018522,1740181854757,-500.0,0.00011534,2]
[354018523,1740181854767,-500.0,0.00011534,2]
[354018524,1740181854776,-532.62,0.00011534,2]
[354018525,1740181854786,-262.1,0.00011534,2]
[354018526,1740181854795,-247.03709033,0.00011534,2]
[354018527,1740181854995,-252.96290967,0.00011534,2]
[354018528,1740181855005,-413.4,0.00011534,2]
[354018529,1740181855015,-500.0,0.00011534,2]
[354018530,1740181855024,-500.0,0.00011534,2]
[354018531,1740181855035,-271.24,0.00011534,2]
[354018532,1740181855045,-500.0,0.00011534,2]
[354018533,1740181855248,-500.0,0.00011534,2]
[354018534,1740181855267,-840.41,0.00011534,2]
[354018535,1740181855276,-1164.89,0.00011534,2]
[354018536,1740181855288,-500.0,0.00011534,2]
[354018537,1740181855298,-500.0,0.00011534,2]
[354018538,1740181855307,-524.06690576,0.00011534,2]
[354018539,1740181855316,-500.0,0.00011534,2]
[354018540,1740181855326,-500.0,0.00011534,2]
[354018541,1740181855335,-500.0,0.00011534,2]
[354018542,1740181855345,-567.21,0.00011534,2]
[354018543,1740181855354,-632.2,0.00011534,2]
[354018544,1740181855363,-560.27,0.00011534,2]
[354018545,1740181855374,-500.0,0.00011534,2]
[354018546,1740181855383,-1000.0,0.00011589,2]
[354018547,1740181855394,-500.0,0.00011615,2]
[354018548,1740181855405,-500.0,0.00011615,2]
[354018549,1740181855417,-500.0,0.00011615,2]
[354018550,1740181855427,-500.0,0.00011615,2]
[354018551,1740181855436,-500.0,0.00011615,2]
[354018552,1740181855446,-500.0,0.00011615,2]
[354018553,1740181855456,-500.0,0.00011615,2]
[354018554,1740181855465,-500.0,0.00011615,2]
[354018555,1740181855474,-595.2,0.00011615,2]
[354018556,1740181855483,-495.15338887,0.00011615,2]
[354018557,1740181855495,-4.84661113,0.00011615,2]
[354018558,1740181855504,-500.0,0.00011615,2]
[354018559,1740181855514,-500.0,0.00011615,2]
[354018560,1740181855523,-500.0,0.00011615,2]
[354018561,1740181855532,-500.0,0.00011615,2]
[354018562,1740181855541,-500.0,0.00011615,2]
[354018563,1740181855551,-500.0,0.00011615,2]
[354018564,1740181855560,-500.0,0.00011615,2]
[354018565,1740181855570,-500.0,0.00011615,2]
[354018566,1740181855579,-500.0,0.00011615,2]
[354018567,1740181855589,-608.40409748,0.00011615,2]
[354018568,1740181855598,-500.0,0.00011615,2]
[354018569,1740181855607,-500.0,0.00011615,2]
[354018570,1740181855617,-153.63281319,0.00011615,2]
[354018571,1740181855631,-346.36718681,0.00011615,2]
[354018572,1740181855642,-527.59,0.00011615,2]
[354018573,1740181855655,-500.0,0.00011615,2]
[354018574,1740181855668,-500.0,0.00011615,2]
[354018575,1740181855678,-500.0,0.00011615,2]
[354018576,1740181855687,-500.0,0.00011615,2]
[354018577,1740181855697,-607.94128863,0.00011615,2]
[354018578,1740181855707,-500.0,0.00011615,2]
[354018579,1740181855717,-500.0,0.00011615,2]
[354018580,1740181855726,-500.0,0.00011615,2]
[354018581,1740181855736,-500.0,0.00011615,2]
[354018582,1740181855745,-500.0,0.00011615,2]
[354018583,1740181855755,-500.0,0.00011615,2]
[354018584,1740181855764,-500.0,0.00011615,2]
[354018585,1740181855774,-500.0,0.00011615,2]
[354018586,1740181855784,-500.0,0.00011615,2]
[354018587,1740181855793,-500.0,0.00011615,2]
[354018588,1740181855803,-500.0,0.00011615,2]
[354018589,1740181855813,-500.0,0.00011615,2]
[354018590,1740181855822,-500.0,0.00011615,2]
[354018591,1740181855832,-500.0,0.00011615,2]
[354018592,1740181855841,-500.0,0.00011615,2]
[354018593,1740181855851,-500.0,0.00011615,2]
[354018594,1740181855861,-500.0,0.00011615,2]
[354018595,1740181855871,-1102.43,0.00011615,2]
[354018596,1740181855881,-522.25,0.00011615,2]
[354018597,1740181855891,-500.0,0.00011615,2]
[354018598,1740181855901,-500.0,0.00011615,2]
[354018599,1740181855910,-1838.679061,0.00011615,2]
[354018600,1740181855919,-554.25,0.00011615,2]
[354018601,1740181855930,-686.33,0.00011615,2]
[354018602,1740181855940,-1600.821566,0.00011615,2]
[354018603,1740181855950,-500.0,0.00011615,2]
[354018604,1740181855960,-500.0,0.00011615,2]
[354018605,1740181855970,-500.0,0.00011615,2]
[354018606,1740181855980,-500.0,0.00011615,2]
[354018607,1740181855990,-810.35,0.00011615,2]
[354018608,1740181855999,-394.74560106,0.00011615,2]
[354018609,1740181856027,-500.0,0.0001153,2]
[354018610,1740181856037,-500.0,0.00011534,2]
[354018611,1740181856047,-105.25439894,0.00011615,2]
[354018612,1740181856057,-47.71680106,0.00011615,2]
[354018613,1740181856095,-500.0,0.00011123,2]
[354018614,1740181856105,-500.0,0.00011284,2]
[354018615,1740181856116,-1226.41,0.00011533,2]
[354018616,1740181856126,-452.28319894,0.00011615,2]
[354018617,1740181856136,-593.26,0.00011615,2]
[354018618,1740181856145,-500.0,0.00011615,2]
[354018619,1740181856156,-71.33133711,0.00011615,2]
[354018620,1740181856168,-428.66866289,0.00011615,2]
[354018621,1740181856178,-371.40132911,0.00011615,2]
[354018622,1740181856194,-128.59867089,0.00011615,2]
[354018623,1740181856203,-272.40132911,0.00011615,2]
[354018624,1740181856541,-2500.0,0.00010858,2]
[354018625,1740181856551,-500.0,0.00011122,2]
[354018626,1740181856561,-492.45068947,0.00011205,2]
[354018627,1740181856572,-7.54931053,0.00011205,2]
[354018628,1740181856582,-500.0,0.00011287,2]
[354018629,1740181856592,-500.0,0.00011366,2]
[354018630,1740181856601,-500.0,0.00011368,2]
[354018631,1740181856610,-275.23,0.00011369,2]
[354018632,1740181856622,-500.0,0.00011448,2]
[354018633,1740181856631,-500.0,0.0001145,2]
[354018634,1740181856640,-500.0,0.00011533,2]
[354018635,1740181856650,-500.0,0.00011613,2]
[354018636,1740181856659,-227.59867089,0.00011615,2]
[354018637,1740181856670,-500.0,0.00011615,2]
[354018638,1740181856680,-328.02951858,0.00011615,2]
[354018639,1740181856692,-171.97048142,0.00011615,2]
[354018640,1740181856702,-500.0,0.00011615,2]
[354018641,1740181856713,-973.71,0.00011615,2]
[354018642,1740181856722,-500.0,0.00011615,2]
[354018643,1740181856733,-1570.17,0.00011615,2]
[354018644,1740181856742,-630.44,0.00011615,2]
[354018645,1740181856753,-558.81,0.00011615,2]
[354018646,1740181856762,-500.0,0.00011615,2]
[354018647,1740181856772,-500.0,0.00011615,2]
[354018648,1740181856782,-1021.16,0.00011615,2]
[354018649,1740181856791,-521.21158048,0.00011615,2]
[354018650,1740181856805,-965.01,0.00011615,2]
[354018651,1740181856816,-1763.61,0.00011615,2]
[354018652,1740181856827,-500.0,0.00011615,2]
[354018653,1740181856837,-500.0,0.00011615,2]
[354018654,1740181856848,-624.35,0.00011615,2]
[354018655,1740181856858,-707.44,0.00011615,2]
[354018656,1740181856868,-500.0,0.00011615,2]
[354018657,1740181856879,-828.03,0.00011615,2]
[354018658,1740181856889,-92.53728467,0.00011615,2]
[354018659,1740181856910,-500.0,0.0001104,2]
[354018660,1740181856920,-331.85056263,0.00011615,2]
[354018661,1740181856929,-1895.66,0.00011615,2]
[354018662,1740181856938,-1121.92,0.00011615,2]
[354018663,1740181856948,-500.0,0.00011615,2]
[354018664,1740181856957,-500.0,0.00011615,2]
[354018665,1740181856968,-500.0,0.00011615,2]
[354018666,1740181856977,-499.97006537,0.00011615,2]
[354018667,1740181856987,-500.0,0.00011615,2]
[354018668,1740181856996,-500.0,0.00011615,2]
[354018669,1740181857006,-148.49917305,0.00011615,2]
[354018670,1740181857018,-351.50082695,0.00011615,2]
[354018671,1740181857027,-460.70800464,0.00011615,2]
[354018672,1740181857039,-298.54199536,0.00011615,2]
[354018673,1740181857048,-635.66,0.00011615,2]
[354018674,1740181857058,-500.0,0.00011615,2]
[354018675,1740181857068,-500.0,0.00011615,2]
[354018676,1740181857077,-935.67,0.00011615,2]
[354018677,1740181857087,-14.50516464,0.00011615,2]
[354018678,1740181857105,-485.49483536,0.00011615,2]
[354018679,1740181857115,-500.0,0.00011615,2]
[354018680,1740181857124,-1.60916017,0.00011615,2]
[354018681,1740181857136,-740.98083983,0.00011615,2]
[354018682,1740181857146,-500.0,0.00011615,2]
[354018683,1740181857156,-677.65,0.00011615,2]
[354018684,1740181857166,-40.92916017,0.00011615,2]
[354018685,1740181857178,-459.07083983,0.00011615,2]
[354018686,1740181857189,-659.26916165,0.00011615,2]
[354018687,1740181857200,-533.36083835,0.00011615,2]
[354018688,1740181857211,-500.0,0.00011615,2]
[354018689,1740181857220,-500.0,0.00011615,2]
[354018690,1740181857230,-606.23,0.00011615,2]
[354018691,1740181857243,-1000.0,0.00011615,2]
[354018692,1740181857258,-594.2,0.00011615,2]
[354018693,1740181857271,-553.49,0.00011615,2]
[354018694,1740181857280,-753.83,0.00011615,2]
[354018695,1740181857292,-825.27,0.00011615,2]
[354018696,1740181857303,-500.0,0.00011615,2]
[354018697,1740181857313,-921.64,0.00011615,2]
[354018698,1740181857323,-950.11,0.00011615,2]
[354018699,1740181857333,-500.0,0.00011615,2]
[354018700,1740181857343,-646.96,0.00011615,2]
[354018701,1740181857353,-500.0,0.00011615,2]
[354018702,1740181857363,-542.05,0.00011615,2]
[354018703,1740181857373,-1226.41,0.00011615,2]
[354018704,1740181857384,-500.0,0.00011615,2]
[354018705,1740181857394,-599.55,0.00011616,2]
[354018706,1740181857403,-500.0,0.00011616,2]
[354018707,1740181857413,-500.0,0.00011616,2]
[354018708,1740181857423,-500.0,0.00011616,2]
[354018709,1740181857432,-650.27,0.00011616,2]
[354018710,1740181857441,-500.0,0.00011616,2]
[354018711,1740181857450,-500.0,0.00011616,2]
[354018712,1740181857460,-500.0,0.00011616,2]
[354018713,1740181857470,-500.0,0.00011616,2]
[354018714,1740181857479,-500.0,0.00011616,2]
[354018715,1740181857488,-532.62,0.00011616,2]
[354018716,1740181857497,-500.0,0.00011616,2]
[354018717,1740181857507,-230.78,0.00011616,2]
[354018718,1740181857517,-500.0,0.00011616,2]
[354018719,1740181857527,-500.0,0.00011616,2]
[354018720,1740181857537,-500.0,0.00011616,2]
[354018721,1740181857547,-840.41,0.00011616,2]
[354018722,1740181857557,-1164.89,0.00011616,2]
[354018723,1740181857612,-509.21,0.00011616,2]
[354018724,1740181857626,-500.0,0.00011616,2]
[354018725,1740181857635,-561.17,0.00011616,2]
[354018726,1740181857644,-500.0,0.00011616,2]
[354018727,1740181857654,-500.0,0.00011616,2]
[354018728,1740181857665,-522.86,0.00011616,2]
[354018729,1740181857675,-500.0,0.00011616,2]
[354018730,1740181857684,-500.0,0.00011616,2]
[354018731,1740181857694,-500.0,0.00011616,2]
[354018732,1740181857705,-500.0,0.00011616,2]
[354018733,1740181857715,-500.0,0.00011616,2]
[354018734,1740181857725,-500.0,0.00011616,2]
[354018735,1740181857734,-567.21,0.00011616,2]
[354018736,1740181857743,-600.88,0.00011616,2]
[354018737,1740181857752,-500.0,0.00011616,2]
[354018738,1740181857762,-632.2,0.00011616,2]
[354018739,1740181857772,-532.14,0.00011616,2]
[354018740,1740181857781,-560.27,0.00011616,2]
[354018741,1740181857795,-1952.39,0.00011616,2]
[354018742,1740181857804,-500.0,0.00011616,2]
[354018743,1740181857813,-500.0,0.00011616,2]
[354018744,1740181857823,-500.0,0.00011616,2]
[354018745,1740181857832,-500.0,0.00011616,2]
[354018746,1740181857842,-904.92,0.00011616,2]
[354018747,1740181857852,-500.0,0.00011616,2]
[354018748,1740181857862,-500.0,0.00011695,2]
[354018749,1740181857871,-500.0,0.00011697,2]
[354018750,1740181857881,-500.0,0.00011697,2]
[354018751,1740181857889,-500.0,0.00011697,2]
[354018752,1740181857899,-500.0,0.00011697,2]
[354018753,1740181857909,-500.0,0.00011697,2]
[354018754,1740181857918,-500.0,0.00011697,2]
[354018755,1740181857927,-500.0,0.00011697,2]
[354018756,1740181857937,-500.0,0.00011697,2]
[354018757,1740181857946,-500.0,0.00011697,2]
[354018758,1740181857955,-500.0,0.00011697,2]